fUSD/lending_fUSD_20240630
["ID","MTS","AMOUNT","RATE_DAILY","PERIOD"]
[330683561,1719708641076,-500.0,0.00013698,3]
[330683563,1719708641084,-500.0,0.00013698,3]
[330683565,1719708641094,-1145.72,0.00013698,3]
[330683567,1719708641103,-806.6,0.00013698,3]
[330683569,1719708641112,-500.0,0.00013698,3]
[330683571,1719708641122,-500.0,0.00013698,3]
[330683573,1719708641133,-1046.19,0.00013698,3]
[330683575,1719708641142,-726.22,0.00013698,3]
[330683577,1719708641151,-643.8,0.00013698,3]
[330683579,1719708641164,-500.0,0.00013698,3]
[330683581,1719708641173,-1192.47,0.00013698,3]
[330683583,1719708641183,-500.0,0.00013698,3]
[330683585,1719708641192,-848.03,0.00013698,3]
[330683587,1719708641201,-500.0,0.00013698,3]
[330683589,1719708641210,-500.0,0.00013698,3]
[330683591,1719708641219,-500.0,0.00013698,3]
[330683593,1719708641228,-500.0,0.00013698,3]
[330683595,1719708641237,-500.0,0.00013698,3]
[330683597,1719708641247,-500.0,0.00013698,3]
[330683598,1719708641256,-500.0,0.00013698,3]
[330683599,1719708641265,-500.0,0.00013698,3]
[330683600,1719708641274,-500.0,0.00013698,3]
[330683601,1719708641284,-1327.76,0.00013698,3]
[330683602,1719708641293,-500.0,0.00013698,3]
[330683603,1719708641303,-500.0,0.00013698,3]
[330683604,1719708641312,-309.05,0.00013698,3]
[330683605,1719708641321,-1434.62,0.00013698,3]
[330683607,1719708641330,-959.16,0.00013698,3]
[330683609,1719708641339,-1152.62,0.00013698,3]
[330683611,1719708641348,-500.0,0.00013698,3]
[330683613,1719708641358,-622.8,0.00013698,3]
[330683615,1719708641367,-525.15,0.00013698,3]
[330683617,1719708641377,-712.33,0.00013698,3]
[330683619,1719708641386,-500.0,0.00013698,3]
[330683621,1719708641395,-500.0,0.00013698,3]
[330683623,1719708641407,-500.0,0.00013698,3]
[330683625,1719708641415,-500.0,0.00013698,3]
[330683627,1719708641425,-583.84,0.00013698,3]
[330683629,1719708641434,-1157.94,0.00013698,3]
[330683631,1719708641443,-1188.2,0.00013698,3]
[330683633,1719708641452,-500.0,0.00013698,3]
[330683635,1719708641465,-500.0,0.00013698,3]
[330683637,1719708641475,-500.0,0.00013698,3]
[330683639,1719708641484,-500.0,0.00013698,3]
[330683641,1719708641493,-532.97,0.00013698,3]
[330683643,1719708641507,-621.6,0.00013698,3]
[330683645,1719708641516,-500.0,0.00013698,3]
[330683647,1719708641525,-403.11619839,0.00013698,3]
[330683649,1719708641535,-500.0,0.00013698,3]
[330683651,1719708641546,-759.26,0.00013698,3]
[330683653,1719708641556,-500.0,0.00013698,3]
[330683655,1719708641566,-500.0,0.00013698,3]
[330683657,1719708641575,-500.0,0.00013698,3]
[330683659,1719708641584,-719.02,0.00013698,3]
[330683661,1719708641593,-500.0,0.00013698,3]
[330683663,1719708641603,-771.15,0.00013698,3]
[330683666,1719708641612,-500.0,0.00013698,3]
[330683668,1719708641622,-500.0,0.00013698,3]
[330683669,1719708641633,-17530.77,0.00013698,3]
[330683671,1719708641642,-500.0,0.00013698,3]
[330683673,1719708641652,-630.54,0.00013698,3]
[330683676,1719708641664,-602.1,0.00013698,3]
[330683678,1719708641673,-953.47,0.00013698,3]
[330683680,1719708641683,-2333.23,0.00013698,3]
[330683682,1719708641692,-500.0,0.00013698,3]
[330683684,1719708641702,-500.0,0.00013698,3]
[330683686,1719708641711,-500.0,0.00013698,3]
[330683688,1719708641720,-500.0,0.00013698,3]
[330683690,1719708641730,-538.9,0.00013698,3]
[330683692,1719708641739,-592.55647898,0.00013698,3]
[330683694,1719708641748,-721.44,0.00013698,3]
[330683696,1719708641758,-765.77,0.00013698,3]
[330683698,1719708641768,-500.0,0.00013698,3]
[330683700,1719708641778,-500.0,0.00013698,3]
[330683702,1719708641787,-500.0,0.00013698,3]
[330683704,1719708641797,-500.0,0.00013698,3]
[330683706,1719708641806,-500.0,0.00013698,3]
[330683708,1719708641815,-500.0,0.00013698,3]
[330683710,1719708641825,-686.06,0.00013698,3]
[330683712,1719708641835,-740.48,0.00013698,3]
[330683714,1719708641844,-1878.25,0.00013698,3]
[330683716,1719708641854,-500.0,0.00013698,3]
[330683717,1719708641863,-500.0,0.00013698,3]
[330683719,1719708641872,-500.0,0.00013698,3]
[330683720,1719708641882,-658.5,0.00013698,3]
[330683722,1719708641892,-500.0,0.00013698,3]
[330683723,1719708641901,-551.41,0.00013698,3]
[330683725,1719708641911,-2420.64,0.00013698,3]
[330683726,1719708641920,-500.0,0.00013698,3]
[330683728,1719708641929,-500.0,0.00013698,3]
[330683729,1719708641938,-500.0,0.00013698,3]
[330683731,1719708641948,-1677.95,0.00013698,3]
[330683732,1719708641957,-500.0,0.00013698,3]
[330683734,1719708641966,-2926.52,0.00013698,3]
[330683735,1719708641975,-594.54,0.00013698,3]
[330683737,1719708641984,-781.98,0.00013698,3]
[330683738,1719708641993,-1393.7,0.00013698,3]
[330683740,1719708642004,-500.0,0.00013698,3]
[330683741,1719708642014,-500.0,0.00013698,3]
[330683743,1719708642023,-680.73,0.00013698,3]
[330683744,1719708642033,-4540.89,0.00013698,3]
[330683746,1719708642042,-710.61,0.00013698,3]
[330683748,1719708642052,-500.0,0.00013698,3]
[330683749,1719708642062,-500.0,0.00013698,3]
[330683751,1719708642072,-500.0,0.00013698,3]
[330683752,1719708642082,-619.03,0.00013698,3]
[330683754,1719708642091,-500.0,0.00013698,3]
[330683756,1719708642101,-500.0,0.00013698,3]
[330683757,1719708642111,-1036.09,0.00013698,3]
[330683759,1719708642120,-500.0,0.00013698,3]
[330683761,1719708642131,-500.0,0.00013698,3]
[330683762,1719708642140,-500.0,0.00013698,3]
[330683764,1719708642150,-500.0,0.00013698,3]
[330683766,1719708642160,-500.0,0.00013698,3]
[330683767,1719708642170,-133.74225718,0.00013698,3]
[330683814,1719708642671,-476.88774282,0.00013698,3]
[330683817,1719708642680,-500.0,0.00013698,3]
[330683819,1719708642689,-9028.33,0.00013698,3]
[330683821,1719708642698,-798.77,0.00013698,3]
[330683823,1719708642707,-500.0,0.00013698,3]
[330683825,1719708642716,-589.63688035,0.00013698,3]
[330683827,1719708642725,-500.0,0.00013698,3]
[330683828,1719708642733,-343.29957683,0.00013698,3]
[330683877,1719708643254,-156.70042317,0.00013698,3]
[330683879,1719708643263,-200.14458738,0.00013698,3]
[330683987,1719708644257,-511.05732044,0.00013424,2]
[330683989,1719708644269,-371.93823586,0.00013424,2]
[330683994,1719708644298,-202.08138529,0.00013424,2]
[330683996,1719708644309,-299.85541262,0.00013698,3]
[330683998,1719708644318,-143.06320209,0.00013698,3]
[330684000,1719708644329,-47.96666631,0.00013698,3]
[330684002,1719708644338,-500.0,0.00013698,3]
[330684004,1719708644348,-500.0,0.00013698,3]
[330684006,1719708644357,-500.0,0.00013698,3]
[330684008,1719708644366,-500.0,0.00013698,3]
[330684010,1719708644375,-500.0,0.00013698,3]
[330684012,1719708644387,-894.93,0.00013698,3]
[330684014,1719708644396,-1282.58,0.00013698,3]
[330684016,1719708644404,-1790.24,0.00013698,3]
[330684017,1719708644417,-1237.43,0.00013698,3]
[330684019,1719708644427,-500.0,0.00013698,3]
[330684022,1719708644436,-500.0,0.00013698,3]
[330684023,1719708644445,-500.0,0.00013698,3]
[330684025,1719708644454,-177.729264,0.00013698,2]
[330684027,1719708644467,-500.0,0.00013698,3]
[330684029,1719708644476,-177.729264,0.00013698,2]
[330684031,1719708644485,-500.0,0.00013698,3]
[330684033,1719708644494,-1036.82,0.00013698,3]
[330684035,1719708644505,-562.2,0.00013698,3]
[330684037,1719708644514,-500.0,0.00013698,3]
[330684039,1719708644523,-500.0,0.00013698,3]
[330684041,1719708644532,-2594.53,0.00013698,3]
[330684043,1719708644544,-500.0,0.00013698,3]
[330684045,1719708644555,-500.0,0.00013698,3]
[330684047,1719708644565,-500.0,0.00013698,3]
[330684049,1719708644574,-602.75,0.00013698,3]
[330684051,1719708644583,-1115.42,0.00013698,3]
[330684053,1719708644592,-749.92,0.00013698,3]
[330684055,1719708644601,-595.9,0.00013698,3]
[330684057,1719708644611,-500.0,0.00013698,3]
[330684059,1719708644620,-500.0,0.00013698,3]
[330684062,1719708644636,-1487.83,0.00013698,3]
[330684064,1719708644645,-500.0,0.00013698,3]
[330684066,1719708644654,-500.0,0.00013698,3]
[330684068,1719708644663,-2114.61,0.00013698,3]
[330684070,1719708644672,-151.0,0.00013698,2]
[330684072,1719708644682,-500.0,0.00013698,3]
[330684074,1719708644691,-500.0,0.00013698,3]
[330684076,1719708644701,-500.0,0.00013698,3]
[330684077,1719708644711,-537.74,0.00013698,3]
[330684078,1719708644719,-723.03441616,0.00013698,3]
[330684137,1719708646265,-21.13558384,0.00013698,3]
[330684138,1719708646274,-500.0,0.00013698,3]
[330684139,1719708646283,-123.86441616,0.00013698,3]
[330684140,1719708646314,-954.71558384,0.00013698,3]
[330684141,1719708646323,-2982.5,0.00013698,3]
[330684142,1719708646333,-500.0,0.00013698,3]
[330684143,1719708646342,-500.0,0.00013698,3]
[330684144,1719708646351,-500.0,0.00013698,3]
[330684145,1719708646360,-500.0,0.00013698,3]
[330684146,1719708646369,-500.0,0.00013698,3]
[330684147,1719708646379,-514.66,0.00013698,3]
[330684148,1719708646389,-2279.76,0.00013698,3]
[330684149,1719708646398,-938.69,0.00013698,3]
[330684150,1719708646408,-500.0,0.00013698,3]
[330684151,1719708646418,-593.12,0.00013698,3]
[330684152,1719708646427,-507.5,0.00013698,3]
[330684153,1719708646437,-2583.9,0.00013698,3]
[330684154,1719708646450,-2448.07,0.00013698,3]
[330684155,1719708646461,-859.75,0.00013698,3]
[330684156,1719708646472,-531.94,0.00013698,3]
[330684157,1719708646482,-500.0,0.00013698,3]
[330684158,1719708646491,-757.87,0.00013698,3]
[330684159,1719708646503,-539.23,0.00013698,3]
[330684160,1719708646512,-506.38,0.00013698,3]
[330684161,1719708646522,-500.0,0.00013698,3]
[330684162,1719708646531,-500.0,0.00013698,3]
[330684164,1719708646544,-1983.23,0.00013698,3]
[330684165,1719708646554,-500.0,0.00013698,3]
[330684166,1719708646564,-500.0,0.00013698,3]
[330684167,1719708646574,-615.73,0.00013698,3]
[330684168,1719708646584,-151.0,0.00013698,2]
[330684169,1719708646594,-800.05,0.00013698,3]
[330684170,1719708646603,-734.02,0.00013698,3]
[330684171,1719708646613,-500.0,0.00013698,3]
[330684172,1719708646623,-151.0,0.00013698,2]
[330684173,1719708646633,-1030.71,0.00013698,3]
[330684174,1719708646643,-2456.37,0.00013698,3]
[330684175,1719708646653,-500.0,0.00013698,3]
[330684176,1719708646663,-563.52,0.00013698,3]
[330684177,1719708646673,-500.0,0.00013698,3]
[330684178,1719708646683,-2366.36,0.00013698,3]
[330684179,1719708646693,-500.0,0.00013698,3]
[330684180,1719708646702,-1133.22,0.00013698,3]
[330684181,1719708646712,-500.0,0.00013698,3]
[330684182,1719708646723,-3348.07,0.00013698,3]
[330684183,1719708646733,-500.0,0.00013698,3]
[330684184,1719708646743,-500.0,0.00013698,3]
[330684185,1719708646753,-1773.53,0.00013698,3]
[330684186,1719708646762,-500.0,0.00013698,3]
[330684187,1719708646772,-1582.84,0.00013698,3]
[330684188,1719708646783,-500.0,0.00013698,3]
[330684189,1719708646795,-500.0,0.00013698,3]
[330684190,1719708646806,-500.0,0.00013698,3]
[330684191,1719708646816,-2869.26,0.00013698,3]
[330684192,1719708646826,-500.0,0.00013698,3]
[330684193,1719708646835,-500.0,0.00013698,3]
[330684194,1719708646845,-613.29,0.00013698,3]
[330684195,1719708646856,-500.0,0.00013698,3]
[330684196,1719708646865,-500.0,0.00013698,3]
[330684197,1719708646875,-500.0,0.00013698,3]
[330684198,1719708646885,-500.0,0.00013698,3]
[330684199,1719708646896,-500.0,0.00013698,3]
[330684200,1719708646906,-500.0,0.00013698,3]
[330684201,1719708646916,-500.0,0.00013698,3]
[330684202,1719708646926,-500.0,0.00013698,3]
[330684203,1719708646935,-500.0,0.00013698,3]
[330684204,1719708646946,-2853.07,0.00013698,3]
[330684205,1719708646955,-500.0,0.00013698,3]
[330684206,1719708646965,-1188.41,0.00013698,3]
[330684207,1719708646975,-1870.05,0.00013698,3]
[330684208,1719708646985,-500.0,0.00013698,3]
[330684209,1719708646995,-500.0,0.00013698,3]
[330684210,1719708647006,-803.52,0.00013698,3]
[330684211,1719708647016,-500.0,0.00013698,3]
[330684212,1719708647026,-151.0,0.00013698,2]
[330684213,1719708647036,-500.0,0.00013698,3]
[330684214,1719708647046,-1763.12,0.00013698,3]
[330684215,1719708647056,-500.0,0.00013698,3]
[330684216,1719708647067,-1118.25,0.00013698,3]
[330684217,1719708647076,-500.0,0.00013698,3]
[330684218,1719708647086,-151.0,0.00013698,2]
[330684219,1719708647096,-586.87781105,0.00013698,3]
[330684220,1719708647106,-1151.36,0.00013698,3]
[330684221,1719708647116,-999.54,0.00013698,3]
[330684222,1719708647125,-500.0,0.00013698,3]
[330684223,1719708647136,-151.0,0.00013698,2]
[330684224,1719708647146,-2856.36,0.00013698,3]
[330684225,1719708647156,-500.0,0.00013698,3]
[330684226,1719708647165,-1287.62,0.00013698,3]
[330684227,1719708647175,-500.0,0.00013698,3]
[330684228,1719708647184,-510.25,0.00013698,3]
[330684229,1719708647194,-500.0,0.00013698,3]
[330684230,1719708647203,-639.54,0.00013698,3]
[330684231,1719708647213,-868.57,0.00013698,3]
[330684232,1719708647222,-788.28,0.00013698,3]
[330684233,1719708647232,-929.66,0.00013698,3]
[330684234,1719708647241,-858.12,0.00013698,3]
[330684235,1719708647251,-500.0,0.00013698,3]
[330684236,1719708647261,-574.77,0.00013698,3]
[330684237,1719708647271,-627.21,0.00013698,3]
[330684238,1719708647281,-527.06,0.00013698,3]
[330684239,1719708647290,-500.0,0.00013698,3]
[330684240,1719708647300,-1060.87,0.00013698,3]
[330684241,1719708647310,-500.0,0.00013698,3]
[330684242,1719708647319,-500.0,0.00013698,3]
[330684243,1719708647330,-151.0,0.00013698,2]
[330684244,1719708647340,-500.0,0.00013698,3]
[330684245,1719708647349,-500.0,0.00013698,3]
[330684246,1719708647359,-500.0,0.00013698,3]
[330684247,1719708647370,-500.0,0.00013698,3]
[330684248,1719708647380,-2863.27,0.00013698,3]
[330684249,1719708647392,-1600.65,0.00013698,3]
[330684250,1719708647401,-500.0,0.00013698,3]
[330684251,1719708647415,-500.0,0.00013698,3]
[330684252,1719708647425,-320.11220191,0.00013698,3]
[330684253,1719708647434,-500.0,0.00013698,3]
[330684254,1719708647444,-500.0,0.00013698,3]
[330684255,1719708647454,-500.0,0.00013698,3]
[330684256,1719708647468,-541.72,0.00013698,3]
[330684257,1719708647478,-500.0,0.00013698,3]
[330684258,1719708647488,-942.37,0.00013698,3]
[330684259,1719708647499,-500.0,0.00013698,3]
[330684260,1719708647517,-874.75,0.00013698,3]
[330684261,1719708647527,-500.0,0.00013698,3]
[330684262,1719708647539,-1585.23,0.00013698,3]
[330684263,1719708647549,-500.0,0.00013698,3]
[330684264,1719708647558,-500.0,0.00013698,3]
[330684265,1719708647568,-151.0,0.00013698,2]
[330684266,1719708647577,-500.0,0.00013698,3]
[330684267,1719708647587,-151.0,0.00013698,2]
[330684268,1719708647596,-69.15640462,0.00013698,3]
[330684269,1719708796406,207.849351,0.00024997,120]
[330684270,1719708798919,1000.0,0.00024997,120]
[330684273,1719708939136,522.33,0.00010499,2]
[330684274,1719709120324,4453.94405105,0.00011098,2]
[330684283,1719709154292,3695.0,0.00011098,2]
[330684284,1719709169185,529.72889138,0.00011098,2]
[330684285,1719709181430,3107.31885347,0.00011098,2]
[330684286,1719709275368,604.78351958,0.00011098,2]
[330684287,1719709288456,2828.80779475,0.00011098,2]
[330684288,1719709314776,1263.41272786,0.00011098,2]
[330684289,1719709323336,365.78781787,0.00011098,2]
[330684290,1719709331084,660.4164294,0.00011098,2]
[330684291,1719709360955,2223.04404721,0.00011098,2]
[330684292,1719709365353,1134.08647708,0.00011098,2]
[330684293,1719709390517,1169.048298,0.00011098,2]
[330684294,1719709404679,955.9732708,0.00011098,2]
[330684295,1719709404721,155.0,0.00011098,2]
[330684296,1719709467143,1069.67493178,0.00011098,2]
[330684297,1719709500992,496.21,0.00010147,2]
[330684298,1719709618765,720.74022383,0.00011098,2]
[330684300,1719709633663,155.0,0.00011098,2]
[330684301,1719709650113,491.56025274,0.00011098,2]
[330684302,1719709653346,483.28391509,0.00011098,2]
[330684303,1719709663328,346.03148912,0.00011098,2]
[330684304,1719709689387,155.0,0.00011098,2]
[330684305,1719709696673,378.6472136,0.00011098,2]
[330684306,1719709698355,301.0295052,0.00011098,2]
[330684307,1719709718973,366.20311967,0.00011098,2]
[330684308,1719709724646,155.0,0.00011098,2]
[330684309,1719709745101,269.34473484,0.00011098,2]
[330684310,1719709760054,155.33834544,0.00011098,2]
[330684311,1719709777628,438.22907106,0.00011098,2]
[330684312,1719709792088,158.29157174,0.00011098,2]
[330684313,1719709793233,2199.11898559,0.00011098,2]
[330684314,1719709794378,155.09956307,0.00011098,2]
[330684318,1719709796096,158.87877684,0.00011098,2]
[330684319,1719709799146,155.0,0.00011098,2]
[330684320,1719709813504,364.844001,0.00011098,2]
[330684321,1719709813570,227.02046916,0.00011098,2]
[330684322,1719709823390,163.60172734,0.00011098,2]
[330684339,1719709831954,-217.90047204,0.00011197,2]
[330684340,1719709831964,-155.0,0.00011197,2]
[330684341,1719709831975,-127.09952796,0.00011199,2]
[330684342,1719709831987,-168.63338889,0.00011199,2]
[330684343,1719709831997,-168.46,0.0001191,2]
[330684344,1719709832007,-142.75432262,0.00011931,2]
[330684345,1719709832018,-793.09567738,0.00011931,2]
[330684346,1719709832028,-500.0,0.00012164,2]
[330684347,1719709832038,-234.20207211,0.00012164,2]
[330684348,1719709832050,-265.79792789,0.00012164,2]
[330684349,1719709832064,-248.11011873,0.00012164,2]
[330684350,1719709832083,-106.29040359,0.00012164,2]
[330684351,1719709832108,-393.70959641,0.00012164,2]
[330684352,1719709832119,-84.88436692,0.00012225,2]
[330684353,1719709832132,-165.11563308,0.00012225,2]
[330684354,1719709832141,-188.53,0.00012249,2]
[330684355,1719709832151,-7724.93832956,0.0001226,2]
[330684356,1719709832164,-535.511,0.0001226,2]
[330684357,1719709832175,-4243.84407077,0.0001226,2]
[330684358,1719709832187,-280.83854349,0.0001226,2]
[330684359,1719709832199,-8047.54421753,0.0001226,2]
[330684360,1719709832210,-695.10588847,0.0001226,2]
[330684361,1719709832233,-3574.21795018,0.0001226,2]
[330684362,1719709832243,-1295.65411014,0.00012268,2]
[330684363,1719709832254,-422.61588986,0.00012268,2]
[330684364,1719709832264,-150.99,0.00012273,2]
[330684365,1719709832273,-262.14,0.00012273,2]
[330684366,1719709832283,-1308.71135882,0.00012273,2]
[330684367,1719709832294,-1079.82897878,0.00012273,2]
[330684368,1719709832305,-746.56164777,0.00012273,2]
[330684369,1719709832317,-830.08689098,0.00012273,2]
[330684370,1719709832328,-1517.19307881,0.00012273,2]
[330684371,1719709832340,-116.28804484,0.00012273,2]
[330684372,1719709832349,-258.41875906,0.00012273,2]
[330684373,1719709832364,-349.96124094,0.00012273,2]
[330684374,1719709832374,-250.0,0.00012284,2]
[330684375,1719709832383,-2894.22622664,0.00012285,2]
[330684376,1719709832395,-1256.0721124,0.00012285,2]
[330684377,1719709832406,-5801.46363943,0.00012285,2]
[330684379,1719709833039,155.0,0.00011098,2]
[330684382,1719709837747,155.0,0.00011098,2]
[330684384,1719709837964,-3334.50552127,0.00012285,2]
[330684385,1719709837975,-150.99,0.00012285,2]
[330684386,1719709837985,-23482.63,0.00012295,2]
[330684387,1719709837995,-170.86,0.00012295,2]
[330684388,1719709838006,-4407.13,0.00012295,2]
[330684389,1719709838016,-1000.0,0.00012302,2]
[330684390,1719709838151,-266.23614765,0.00012302,2]
[330684391,1719709838162,-418.98646016,0.00012314,2]
[330684392,1719709838172,-152.42,0.00012358,2]
[330684393,1719709838182,-1000.0,0.00012386,2]
[330684394,1719709838192,-167.03,0.00012394,2]
[330684395,1719709838202,-152.42,0.00012394,2]
[330684396,1719709838211,-496.21,0.00012411,2]
[330684397,1719709838221,-467.47,0.00012425,2]
[330684398,1719709838230,-10087.09,0.00012425,2]
[330684399,1719709838240,-284.7,0.00012425,2]
[330684400,1719709838249,-499.99,0.00012425,2]
[330684401,1719709838258,-152.42,0.0001243,2]
[330684402,1719709838267,-152.42,0.00012466,2]
[330684403,1719709838276,-152.42,0.00012502,2]
[330684404,1719709838285,-152.42,0.00012537,2]
[330684405,1719709838293,-152.42,0.00012573,2]
[330684407,1719709838302,-152.42,0.00012609,2]
[330684409,1719709838311,-152.42,0.00012645,2]
[330684411,1719709838321,-152.42,0.0001268,2]
[330684413,1719709838330,-152.42,0.00012716,2]
[330684415,1719709838339,-152.42,0.00012752,2]
[330684417,1719709838349,-152.42,0.00012788,2]
[330684419,1719709838359,-152.42,0.00012824,2]
[330684421,1719709838368,-152.42,0.00012859,2]
[330684423,1719709838378,-152.42,0.00012895,2]
[330684425,1719709838388,-3101.78,0.00012927,2]
[330684427,1719709838398,-152.42,0.00012931,2]
[330684429,1719709838412,-152.42,0.00012967,2]
[330684432,1719709838422,-500.0,0.00012986,2]
[330684434,1719709838432,-500.0,0.00012986,2]
[330684436,1719709838442,-152.42,0.00013003,2]
[330684437,1719709838451,-680.319,0.00013038,2]
[330684440,1719709838463,-150.0,0.0001337,2]
[330684442,1719709838473,-150.0,0.0001337,2]
[330684444,1719709838484,-150.0,0.0001337,2]
[330684446,1719709838494,-354.62,0.0001337,2]
[330684448,1719709838504,-150.0,0.0001337,2]
[330684449,1719709838515,-528.11,0.0001337,2]
[330684451,1719709838525,-152.56,0.0001337,2]
[330684452,1719709838536,-300.0,0.0001337,2]
[330684454,1719709838547,-164.75,0.0001337,2]
[330684456,1719709838557,-150.0,0.0001337,2]
[330684457,1719709838568,-150.0,0.0001337,2]
[330684459,1719709838577,-150.0,0.0001337,2]
[330684460,1719709838587,-354.62,0.0001337,2]
[330684462,1719709838598,-424.06,0.0001337,2]
[330684463,1719709838607,-150.0,0.0001337,2]
[330684465,1719709838617,-150.0,0.0001337,2]
[330684467,1719709838627,-528.11,0.0001337,2]
[330684468,1719709838637,-164.75,0.0001337,2]
[330684470,1719709838647,-528.11,0.0001337,2]
[330684471,1719709838656,-150.0,0.0001337,2]
[330684473,1719709838666,-354.62,0.0001337,2]
[330684475,1719709838676,-164.75,0.0001337,2]
[330684476,1719709838685,-150.0,0.0001337,2]
[330684478,1719709838695,-424.06,0.0001337,2]
[330684479,1719709838705,-150.0,0.0001337,2]
[330684481,1719709838714,-150.0,0.0001337,2]
[330684482,1719709838724,-150.0,0.0001337,2]
[330684484,1719709838734,-150.0,0.0001337,2]
[330684486,1719709838743,-150.0,0.0001337,2]
[330684488,1719709838756,-150.0,0.0001337,2]
[330684489,1719709838765,-164.55,0.0001337,2]
[330684491,1719709838775,-528.11,0.0001337,2]
[330684492,1719709838785,-150.0,0.0001337,2]
[330684494,1719709838794,-424.06,0.0001337,2]
[330684496,1719709838804,-354.62,0.0001337,2]
[330684497,1719709838813,-150.0,0.0001337,2]
[330684499,1719709838823,-150.0,0.0001337,2]
[330684501,1719709838832,-424.06,0.0001337,2]
[330684503,1719709838842,-150.0,0.0001337,2]
[330684504,1719709838851,-354.07,0.0001337,2]
[330684506,1719709838862,-1000.0,0.000134,2]
[330684508,1719709838871,-1120.84609258,0.00013424,2]
[330684509,1719709838880,-633.56,0.00013425,2]
[330684511,1719709838891,-164.75,0.00013425,2]
[330684513,1719709838900,-150.0,0.00013425,2]
[330684514,1719709838909,-847.46,0.00013425,2]
[330684516,1719709838919,-823.47,0.00013425,2]
[330684518,1719709838929,-150.0,0.00013425,2]
[330684519,1719709838938,-150.0,0.00013425,2]
[330684521,1719709838948,-150.0,0.00013425,2]
[330684523,1719709838958,-164.75,0.00013425,2]
[330684525,1719709838967,-150.0,0.00013425,2]
[330684526,1719709838976,-164.75,0.00013425,2]
[330684528,1719709838986,-150.0,0.00013425,2]
[330684530,1719709838996,-163.6,0.00013425,2]
[330684531,1719709839006,-321.4923,0.00013498,2]
[330684532,1719709839016,-882.3549,0.00013498,2]
[330684534,1719709839026,-200.0,0.000135,4]
[330684535,1719709839037,-2500.0,0.0001356,2]
[330684536,1719709839048,-220.24,0.00013589,2]
[330684538,1719709839060,-190.73734457,0.00013598,2]
[330684539,1719709839072,-164.03076331,0.00013598,2]
[330684541,1719709839083,-450.7799,0.00013598,2]
[330684542,1719709839093,-393.9356,0.00013598,2]
[330684544,1719709839105,-49976.4774,0.00013598,2]
[330684545,1719709839115,-328.625,0.00013598,2]
[330684547,1719709839125,-2889.7741,0.00013598,2]
[330684548,1719709839135,-7500.0,0.00013598,2]
[330684550,1719709839149,-236.71094193,0.00013599,2]
[330684552,1719709839159,-500.0,0.000136,4]
[330684553,1719709839173,-300.0,0.00013613,2]
[330684555,1719709839183,-190.73734457,0.00013634,2]
[330684556,1719709839193,-5172.0,0.00013646,2]
[330684558,1719709839203,-1197.0,0.00013646,2]
[330684560,1719709839213,-313.199,0.00013646,2]
[330684561,1719709839223,-1382.436,0.00013646,2]
[330684563,1719709839233,-38187.0,0.00013646,2]
[330684565,1719709839242,-236.71094192,0.00013654,2]
[330684566,1719709839253,-190.73734457,0.0001367,2]